Cogmind - Beta 12 @@@ ROGUE MODE // 2023.12.10 @ 07:22:25 Player: ApricotBot Result: Destroyed by G-34 Mercenary with Small Laser Performance ------------- Evolutions (1) 500 Regions Visited (2) 400 Robots Destroyed (18) 90 Value Destroyed (453) 453 Prototype IDs (0) 0 Alien Tech Used (0) 0 Bonus (0) 0 TOTAL SCORE: 1443 Bonus ------- None Cogmind --------- Core Integrity 0/400 Matter 161/300 Energy 9/100 System Corruption 4% Temperature Cool (6) Movement Core (50) Location -9/Materials Parts ------- > --- POWER (1) -------- (None) > --- PROPULSION (2) --- (None) > --- UTILITY (4) ------ Weight Redist. System Target Analyzer Target Analyzer > --- WEAPON (2) ------- Light Assault Rifle > --- INVENTORY (5) ---- Light Ion Engine Compact Wheel Peak State ------------ > --- POWER ------------ Improved Ion Engine > --- PROPULSION ------- Aluminum Leg Aluminum Leg > --- UTILITY ---------- High-capacity Battery Weight Redist. System Target Analyzer Target Analyzer > --- WEAPON ----------- Autogun Rocket Launcher > --- INVENTORY -------- Light Ion Engine Compact Wheel Light Assault Rifle Light Assault Rifle Plasma Cutter [Rating: 17] Favorites ----------- Power Ion Engine Engine Ion Engine Propulsion Aluminum Leg Leg Aluminum Leg Utility High-capacity Battery Device Weight Redist. System Storage High-capacity Battery Processor Target Analyzer Weapon Light Assault Rifle Energy Gun Medium Laser Ballistic Gun Light Assault Rifle Launcher Rocket Launcher Special Weapon Plasma Cutter Slashing Weapon Mining Claw Build | -11 -10 -9 ------- Run | Jun Mat Mat Slots Evolved 2 | . . 2 Power . | . . . Propulsion . | . . . Utility 2 | . . 2 Weapon . | . . . Parts Attached 33 | 6 9 18 Power 6 | 1 3 2 Engine 6 | 1 3 2 Core . | . . . Reactor . | . . . Propulsion 7 | 2 2 3 Treads . | . . . Leg 7 | 2 2 3 Wheel . | . . . Hover . | . . . Flight . | . . . Utility 5 | 1 1 3 Device 1 | . . 1 Storage 2 | 1 1 . Processor 2 | . . 2 Hackware . | . . . Protection . | . . . Artifact . | . . . Weapon 15 | 2 3 10 Energy Gun 3 | 1 1 1 Energy Cannon . | . . . Ballistic Gun 8 | 1 2 5 Ballistic Cannon . | . . . Launcher 1 | . . 1 Special Weapon 2 | . . 2 Impact Weapon . | . . . Slashing Weapon 1 | . . 1 Piercing Weapon . | . . . Special Melee Weapon . | . . . Unidentified Prototypes . | . . . Parts Lost 12 | . . 12 Power 1 | . . 1 Propulsion 4 | . . 4 Utility 1 | . . 1 Weapon 6 | . . 6 Highest Loss Streak 9 | . . 9 To Critical Strikes . | . . . Average Slot Usage (%) 79 | . 86 74 Engine 11 | . 13 9 Leg 21 | . 25 18 Device 5 | . . 9 Storage 14 | . 20 9 Processor 3 | . . 6 Energy Gun 6 | . 12 2 Ballistic Gun 14 | . 12 15 Naked Turns . | . . . Heaviest Build 18 | 13 17 18 Greatest Support 26 | 20 20 26 Greatest Overweight (x) 3 | . 3 1 Average Overweight (x) . | . . . Largest Inventory Capacity 8 | 8 8 5 Average Capacity 6 | 6 7 5 Most Carried 8 | 3 8 5 Average Carried 3 | 1 3 4 Final Capacity 8 | 8 5 5 Final Carried 4 | 2 4 2 Class Distribution -------------------- 87% | Mutant 12% | Scavenger-Mutant Dominant Class ---------------- Mutant | -10/Materials Mutant | -9/Materials Resources | -11 -10 -9 ----------- Run | Jun Mat Mat Matter Collected 460 | 139 133 188 Remotely . | . . . Salvage Created 500 | . 147 353 Parts 32 | . 7 25 Haulers Intercepted . | . . . Recyclers Shooed 1 | . . 1 Parts Field Recycled . | . . . Retrieved Matter . | . . . Parts Self-Destructed . | . . . Prevented . | . . . Kills | -11 -10 -9 ------- Run | Jun Mat Mat Combat Hostiles Destroyed 16 | . 3 13 Melee 2 | . . 2 Guns 10 | . 3 7 AOE 4 | . . 4 Classes Destroyed 5 | . 2 3 Builder 1 | . . 1 Recycler 1 | . 1 . Swarmer 7 | . 3 4 Grunt 6 | . . 6 Sentry 3 | . . 3 Best Kill Streak 7 | . 4 7 Combat Bots Only 5 | . 3 5 Max Kills in Single Turn 2 | . 1 2 Gunslinging . | . . . Exploded 1 | . . 1 Melee 1 | . . 1 Uniques/NPCs Destroyed . | . . . Combat | -11 -10 -9 -------- Run | Jun Mat Mat Damage Taken 1624 | . 267 1357 Core 469 | . 64 405 Absorbed by Shields . | . . . Regen/Repaired (Parts) 7 | . 7 . Core Remaining (%) 87 | 100 74 . Volleys Fired 53 | . 12 41 Largest 2 | . 2 2 Hottest 70 | . 70 65 Shots Fired 90 | . 24 66 Gun 83 | . 24 59 Cannon . | . . . Launcher 4 | . . 4 Special 3 | . . 3 Kinetic 66 | . 12 54 Thermal 15 | . 12 3 Explosive 4 | . . 4 Electromagnetic 5 | . . 5 Robot Hit Streak 6 | . 4 6 Robot Miss Streak 6 | . 3 6 Penetration Max . | . . . Secondary Targets 4 | . 1 3 Max Gunslinging Chain 1 | . 1 1 Shots Hit Robots 46 | . 11 35 Core Hits 36 | . 7 29 Critical Kills 2 | . . 2 Critical Parts Destroyed 1 | . . 1 Critical Strikes 3 | . . 3 Destroy 3 | . . 3 Melee Attacks 4 | . . 4 Impact . | . . . Slashing 4 | . . 4 Piercing . | . . . Sneak Attacks . | . . . Combat Hostiles . | . . . Follow-up Attacks . | . . . Damage Inflicted 895 | . 129 766 Guns 453 | . 124 329 Cannons . | . . . Explosions 332 | . . 332 Melee 97 | . . 97 Ramming 13 | . 5 8 Kinetic 290 | . 25 265 Thermal 119 | . 99 20 Explosive 312 | . . 312 Electromagnetic 64 | . . 64 Impact . | . . . Slashing 97 | . . 97 Piercing . | . . . Highest Corruption 4 | . . 4 Average Corruption 4 | . . 4 Corruption Purged . | . . . Corruption Blocked . | . . . Effects 1 | . . 1 Energy Discharges 1 | . . 1 Overload Shots . | . . . Overflow Damage . | . . . Projectiles . | . . . Explosions . | . . . Melee . | . . . Knockbacks . | . . . Impact . | . . . Kinetic . | . . . Secondary . | . . . Self-Inflicted Damage 28 | . . 28 Shots 1 | . . 1 Rammed . | . . . Targets Rammed 3 | . 2 1 Kicked 3 | . 2 1 Crushed . | . . . Highest Temperature 170 | . 170 51 Average Temperature 53 | . 78 20 Received Heat Transfer 276 | . . 276 Siege Activations . | . . . Robots Corrupted . | . . . Combat Hostiles . | . . . Parts Fried . | . . . Impact Corruptions . | . . . Robots Melted . | . . . Combat Hostiles . | . . . Parts Melted 1 | . 1 . Heat Transferred 346 | . 296 50 Parts Sabotaged . | . . . Parts Stolen . | . . . Parts Stripped . | . . . Power Chain Reactions 1 | . . 1 Missiles Intercepted . | . . . Alert | -11 -10 -9 ------- Run | Jun Mat Mat Peak Influence 364 | . 78 364 Initial 32 | . . 32 Average 78 | . 24 130 Maximum Alert Level 1 | . . 1 Low Security (%) 95 | 100 100 90 Level 1 4 | . . 9 Level 2 . | . . . Level 3 . | . . . Level 4 . | . . . Level 5 . | . . . High Security . | . . . Max Security . | . . . Squads Dispatched 1 | . . 1 Investigation . | . . . Extermination . | . . . Reinforcement 1 | . . 1 Assault . | . . . Garrison . | . . . Intercept . | . . . Searches Triggered . | . . . Construction Impeded . | . . . Haulers Reinforced . | . . . Active Scanning Responses . | . . . Cargo Convoy Interrupts . | . . . Stealth | -11 -10 -9 --------- Run | Jun Mat Mat Distress Signals 1 | . . 1 Communications Jammed . | . . . Distress Signals . | . . . Times Spotted 23 | . 4 19 Peak Tracking Total 6 | . 3 6 Tactical Retreats . | . . . Traps | -11 -10 -9 ------- Run | Jun Mat Mat Traps Triggered 2 | . 2 . Indirectly . | . . . Trap Hack Attempts . | . . . Triggered . | . . . Disarmed . | . . . Reprogrammed . | . . . Reused . | . . . Traps Extracted . | . . . Installed . | . . . Triggered . | . . . Machines | -11 -10 -9 ---------- Run | Jun Mat Mat Machines Disabled 2 | . . 2 Max in Single Turn 1 | . . 1 Machines Repaired . | . . . Machines Sabotaged . | . . . Overloaded Fab Kills . | . . . Hacking | -11 -10 -9 --------- Run | Jun Mat Mat Machines Accessed 4 | . 3 1 Terminals 2 | . 2 . Fabricators . | . . . Repair Stations 1 | . 1 . Recycling Units 1 | . . 1 Scanalyzers . | . . . Garrison Access . | . . . Total Hacks 8 | . 6 2 Successful 6 | . 5 1 Failed 2 | . 1 1 Catastrophic . | . . . Database Lockouts . | . . . Manual . | . . . Terminals 4 | . 4 . Fabricators . | . . . Repair Stations 2 | . 2 . Recycling Units 2 | . . 2 Scanalyzers . | . . . Garrison Access . | . . . Terminal Hacks 3 | . 3 . Alert Level 1 | . 1 . Maintenance Status 1 | . 1 . Zone Layout 1 | . 1 . Fabricator Hacks . | . . . Repair Station Hacks 2 | . 2 . Scan Component 1 | . 1 . Repair 1 | . 1 . Recycling Unit Hacks 1 | . . 1 Report Inventory 1 | . . 1 Scanalyzer . | . . . Garrison Access Hacks . | . . . Unauthorized Hacks . | . . . Terminals . | . . . Fabricators . | . . . Repair Stations . | . . . Recycling Units . | . . . Scanalyzers . | . . . Garrison Access . | . . . Data Cores Recovered . | . . . Used . | . . . Hacking Detections 2 | . 2 . Full Trace Events . | . . . Feedback Events . | . . . Feedback Blocked . | . . . Robot Schematics Acquired . | . . . Robots Built . | . . . Authchips . | . . . Time . | . . . Total Robot Build Rating . | . . . Part Schematics Acquired . | . . . Parts Built . | . . . Authchips . | . . . Time . | . . . Total Part Build Rating . | . . . Parts Repaired 1 | . 1 . Time 26 | . 26 . Parts Recycled . | . . . Recycled Matter . | . . . Retrieved Matter . | . . . Retrieved Components . | . . . Parts Scanalyzed . | . . . Part Schematics Acquired . | . . . Parts Damaged . | . . . Bothacking | -11 -10 -9 ------------ Run | Jun Mat Mat Used RIF Installer . | . . . Robots Hacked . | . . . Non-combat . | . . . Combat . | . . . Robot Hacks Applied . | . . . Relay Couplers Released . | . . . Fabnet Peak Effective % . | . . . Robots Rewired . | . . . Allies Hacked . | . . . Hacks Repelled . | . . . Allies | -11 -10 -9 -------- Run | Jun Mat Mat Total Allies . | . . . Largest Group . | . . . Highest-Rated Group . | . . . Highest-Rated Ally . | . . . Total Orders . | . . . Ally Attacks . | . . . Total Damage . | . . . Kills . | . . . Allies Corrupted . | . . . Allies Melted . | . . . Intel | -11 -10 -9 ------- Run | Jun Mat Mat Robot Analysis Total . | . . . Derelict Logs Recovered . | . . . Drone Launches . | . . . Drone Recoveries . | . . . Exploration | -11 -10 -9 ------------- Run | Jun Mat Mat Turns Passed 870 | 63 352 455 Spaces Moved 548 | 47 242 259 Core 36 | 10 13 13 Treads . | . . . Legs 512 | 37 229 246 Wheels . | . . . Hover . | . . . Flight . | . . . Fastest Speed 50 | 50 100 50 Average Speed 118 | 105 122 117 Slowest Speed 200 | 120 200 120 Overloaded Moves . | . . . Propulsion Burnouts . | . . . Robots Hopped . | . . . Cave-ins Triggered 1 | . . 1 Exploration Rate (%) 23 | 3 44 24 Regions Visited 2 Branch Regions . Pre-discovered Areas . | . . . Known Exits Taken . | . . . Unknown Exits Taken 2 | 1 1 . Scrap Searched . | . . . Spaces Dug . | . . . Terrain Destroyed 21 | . . 21 Melee . | . . . Projectile . | . . . AOE 21 | . . 21 Terrain Rammed . | . . . Walls Destroyed . | . . . Machines Disabled . | . . . Actions | -11 -10 -9 --------- Run | Jun Mat Mat Total 678 | 60 275 343 Wait 9 | . . 9 Move 546 | 46 241 259 Hop . | . . . Pick Up 23 | 8 9 6 Fast Attach 5 | . 1 4 Attach 17 | 6 5 6 Detach . | . . . Swap 11 | . 3 8 Drop 7 | . 2 5 Fire 53 | . 12 41 Melee 4 | . . 4 Ram . | . . . Kick 3 | . 2 1 Crush . | . . . Escape Stasis . | . . . Rewire . | . . . Trap . | . . . Miscellaneous . | . . . Route ------- -11/Junkyard -10/Materials -9/Materials History --------- Turn | Location | Event 13 | -11/Junkyard | Discovered new exit (range 15) 64 | -11/Junkyard | Entered Materials 304 | -10/Materials | Build established: Mutant 349 | -10/Materials | Discovered new exit (range 15) 414 | -10/Materials | Repaired Sml. Storage Unit? 416 | -10/Materials | Entered another Materials area 416 | -9/Materials | Evolved 2 slots: Utility x2 689 | -9/Materials | Lost 3 parts (2n1w) 815 | -9/Materials | Crushed by falling debris 815 | -9/Materials | Core integrity fell below 50% 852 | -9/Materials | Core integrity fell below 20% 871 | -9/Materials | Destroyed by G-34 Mercenary with Small Laser Last Messages --------------- 00815_ System corrupted by crushing effect (+2). 00816_ Imp. Ion Engine destroyed. 00819_ S-10 Pest suffers critical hit (Destroy). 00819_ S-10 Pest destroyed. 00826_ The unstable cave ceiling collapses. 00827_ Lgt. Assault Rifle destroyed. 00835_ R-06 Scavenger collects Aluminum Leg. 00835_ K-01 Serf collects debris. 00839_ R-06 Scavenger collects Sml. Laser. 00841_ K-01 Serf collects debris. 00843_ R-06 Scavenger collects Terrain Scan Processor. 00843_ Plasma Cutter destroyed. 00845_ K-01 Serf collects debris. 00847_ Aluminum Leg destroyed. 00854_ Acquired Welding Torch. 00855_ S-10 Pest destroyed. 00856_ Acquired 17 matter. 00865_ Welding Torch destroyed. 00868_ The unstable cave ceiling collapses. 00869_ System corrupted: Energy discharge (-4). Map ----- +----------------------------------------------------+ | ?????? S"" #?????##### #?# """ #????????????? | | ?????? "" #?????#!! ### """ #????????????? | | ?????#######?????# + """ #????????????? | | ?????????????????#== ### #????????????? | | ?????????????????#== #?# / #????????????? | | ?????????????????#!! #?#######????????????? | | ?????????????????#!! #????????????????????? | | ?????????????????##### #????????????????????? | | ?????????????????????# #????????????????????? | | ?????????????????????# #????????????????????? | | ?????????????????????# #????????????????????? | | ?????????????????????# #????????????????????? | | ?????????????????????# #????????????????????? | | ?????????????????????# #????????????????????? | | ??????????????######## #???####??#??????????? | | ??????????????# # #??"" ## #??????????? | | ?????????????## "" # #?"T" o/ ????????????? | | ?????????????# """ # # #?????????????? | | ??????????????# S" + + ]!! #?????????????? | | ??????????????#=[ # # ]! #?????????????? | | ???????????##?#=* ! # # ]! #?????????????? | | ??????????## ### ### # ####?????????????? | | ??????????# [ ##### #?????????? | | ??????????# [ ! s #?????????? | | ??????????# =%%= s% k #?????????? | | ??????????# = @% = %= g #?????????? | | ??????????# # ####### + ???????? | | ??????????# " ### ####??????? #?????????? | | ??????????# """""" # ????????????????????? | | ??????????# """"""" #? ??????????????????? | | ??????????########### ?????????????????? | | ????????????????????? ????????????????? | | ????????????????????? !! ????????????????? | | ????????????????????# !! #???????????????? | | ????????????????????# !! #???????????????? | | ????????????????????# #???????????????? | | ????????????????????#####/#####???????????????? | | ?????????????????????????a ???????????????????? | | ????????????????????????? ???????????????????? | | ????????????????????????? ???????????????????? | | ??????????????????????????????????????????????? | | ??????????????????????????????????????????????? | | ??????????????????????????????????????????????? | | ??????????????????????????????????????????????? | | ??????????????????????????????????????????????? | | ??????????????????????????????????????????????? | | ??????????????????????????????????????????????? | | ??????????????????????????????????????????????? | | ??????????????????????????????????????????????? | | ??????????????????????????????????????????????? | +----------------------------------------------------+ Best States ------------- Heat Dissipation 28 Energy Generation 12 Energy Capacity 515 Matter Stores 261 Matter Capacity 300 Sight Range 16 Terrain Scan Density 10 Additional Mass Support 6 Evasion (%) 55 Target Analysis 7 Item Schematics ----------------- None Robot Schematics ------------------ None Fabricated ------------ Nothing Alien Tech Used ----------------- None Achievements -------------- None Challenges ------------ None Game ------ Seed HugeControlRifle Manual? 0 Play Time 00:17:36 Cumulative 12.8 hours Start 2023.12.10 @ 07:06:52 End 2023.12.10 @ 07:22:25 Sessions 1 Manual Loads 0 Difficulty Rogue Special Mode None Game No. 38 Rogue 32 Adventurer 6 Explorer 0 Win Type - Total 0 Types 0/0/0/0/0/0/0/0/0 Lore% 4 Gallery% 22 Achievement% 15 Wizard Run 0 Options --------- ASCII 0 Keyboard 0 Movement Mouse Keybinds 0 Fullscreen 1 Font 12/Crisp Map View 76x56 Tactical HUD 1 Map Filters NONE Filters NONE Steam 1 RUN: 47e69169-f052-41f1-bb3e-ce0a712d6683